bitfinex/quotes_SOLUSD_20240615
["timestamp","ask_amount","ask_price","bid_price","bid_amount"]
[1718471549904,5.6,145.1,145.09,2.5501]
[1718471550102,5.6,145.1,145.08,25.5026]
[1718471550295,5.6,145.1,145.08,7.6507]
[1718471551036,5.6,145.09,145.08,25.5028]
[1718471552730,2.5499,145.11,145.09,2.55]
[1718471553027,5.6,145.1,145.09,7.6502]
[1718471553433,5.6,145.1,145.09,2.55]
[1718471553634,5.6,145.1,145.08,25.5026]
[1718471554131,5.6,145.1,145.08,22.9525]
[1718471554337,5.6,145.1,145.08,25.5026]
[1718471554629,5.6,145.1,145.09,2.5501]
[1718471556114,5.6,145.1,145.09,15.3007]
[1718471556431,5.6,145.1,145.09,2.5501]
[1718471557109,5.6,145.1,145.08,25.5022]
[1718471557310,5.6,145.09,145.08,25.5022]
[1718471558133,5.6,145.09,145.08,7.6504]
[1718471558834,5.6,145.09,145.08,15.3013]
[1718471559013,5.6,145.09,145.08,25.5025]
[1718471559214,25.4966,145.12,145.09,7.6502]
[1718471559532,5.6,145.1,145.09,7.6502]
[1718471559733,5.6,145.1,145.08,25.5026]
[1718471559911,5.6,145.09,145.08,25.5026]
[1718471560329,7.17692927,145.13,145.06,15.0014]
[1718471560527,7.17692927,145.13,145.11,15.2983]
[1718471560742,5.6,145.12,145.06,15.0014]
[1718471560908,5.6,145.09,145.08,25.503]
[1718471561533,5.6,145.09,145.08,7.6509]
[1718471561721,5.6,145.09,145.08,2.5503]
[1718471562034,5.6,145.09,145.08,7.6509]
[1718471562215,5.6,145.09,145.08,2.5503]
[1718471562945,5.6,145.09,145.07,25.5037]
[1718471563238,0.17,145.1,145.08,2.5503]
[1718471563546,5.6,145.09,145.08,2.5503]
[1718471563714,5.6,145.09,145.08,7.6509]
[1718471563911,0.17,145.08,145.05,12.754]
[1718471564110,5.6,145.06,145.05,25.5079]
[1718471564521,5.6,145.06,145.04,2.5508]
[1718471564719,0.17,145.06,145.05,15.3049]
[1718471564926,5.77,145.06,145.05,7.6524]
[1718471565626,5.77,145.06,145.05,2.5508]
[1718471566744,5.77,145.06,145.05,7.6524]
[1718471568845,5.77,145.06,145.05,2.5508]
[1718471569143,5.77,145.06,145.04,25.5086]
[1718471569539,5.6,145.05,145.03,5.1021]
[1718471569716,5.6,145.04,145.03,25.5112]
[1718471577052,2.7206,145.06,145.04,2.5509]
[1718471577239,5.6,145.05,145.04,2.5509]
[1718471579850,5.6,145.05,145.03,22.9601]
[1718471580449,5.6,145.05,145.04,2.551]
[1718471581248,5.6,145.05,145.03,25.5111]
[1718471581450,5.6,145.05,145.04,2.551]
[1718471583553,5.6,145.05,145.03,22.9601]
[1718471583754,5.6,145.05,145.03,25.5111]
[1718471584050,5.6,145.05,145.03,22.9601]
[1718471584251,5.6,145.05,145.03,25.5111]
[1718471584430,5.6,145.05,145.03,2.551]
[1718471584751,5.6,145.04,145.03,7.6533]
[1718471584962,5.6,145.04,145.03,15.3068]
[1718471585134,5.6,145.04,145.03,25.5115]
[1718471585327,0.17,145.05,145.04,2.551]
[1718471585534,5.77,145.05,145.04,2.551]
[1718471586660,5.77,145.05,145.03,25.5115]
[1718471587076,5.77,145.05,145.04,2.551]
[1718471587354,23.122,145.09,145.06,2.5506]
[1718471587541,5.6,145.07,145.05,25.508]
[1718471587745,5.6,145.06,145.05,25.508]
[1718471588938,5.6,145.06,145.04,22.9583]
[1718471589144,2.5505,145.07,145.05,2.5508]
[1718471589353,5.6,145.06,145.05,2.5508]
[1718471590529,5.6,145.06,145.05,7.6524]
[1718471590836,5.6,145.06,145.05,2.5508]
[1718471591155,5.6,145.06,145.05,7.6524]
[1718471591360,5.6,145.06,145.05,2.5508]
[1718471593354,2.5505,145.07,145.05,2.5508]
[1718471593539,5.6,145.06,145.05,2.5508]
[1718471593738,5.6,145.06,145.04,25.5091]
[1718471594337,5.6,145.06,145.04,7.6525]
[1718471595063,5.6,145.06,145.04,25.5095]
[1718471595355,5.6,145.06,145.04,22.9587]
[1718471595566,5.6,145.06,145.04,25.5095]
[1718471597162,5.6,145.06,145.04,7.6525]
[1718471597368,2.5505,145.07,145.04,7.6525]
[1718471597538,5.6,145.05,145.04,7.6525]
[1718471597947,5.6,145.05,145.04,2.5508]
[1718471598134,5.6,145.05,145.04,7.6528]
[1718471598961,5.6,145.05,145.04,15.3058]
[1718471599265,5.6,145.05,145.03,2.5511]
[1718471599729,5.6,145.04,145.02,25.5124]
[1718471599934,5.6,145.03,145.02,25.5124]
[1718471600843,5.6,145.04,145.03,2.5511]
[1718471603078,5.6,145.04,145.03,7.6534]
[1718471603868,5.6,145.04,145.03,2.5511]
[1718471604072,5.6,145.04,145.03,7.6534]
[1718471604239,5.6,145.04,145.03,2.5511]
[1718471604655,5.6,145.04,145.03,7.6534]
[1718471606663,7.6521,145.06,145.03,7.6534]
[1718471606862,5.6,145.04,145.03,7.6534]
[1718471607165,5.6,145.04,145.03,15.3069]
[1718471607562,5.6,145.04,145.03,25.5116]
[1718471608669,5.6,145.04,145.03,7.6534]
[1718471609766,5.6,145.04,145.02,7.6538]
[1718471610078,5.6,145.03,145.02,15.308]
[1718471610767,5.6,145.03,145.02,25.5134]
[1718471611489,5.6,145.03,145.02,7.6539]
[1718471611701,5.6,145.03,145.02,15.308]
[1718471612977,5.6,145.03,145.02,25.5134]
[1718471615193,5.6,145.03,145.02,7.6539]
[1718471615368,5.6,145.03,145.02,2.5512]
[1718471615895,5.6,145.03,144.99,15.5264]
[1718471615896,5.6,145.03,144.97,6.6519]
[1718471616094,31.2824,145.03,145.0,2.5517]
[1718471616302,5.6,145.01,144.99,22.9667]
[1718471616503,25.6824,145.03,145.0,2.5517]
[1718471616674,5.6,145.01,145.0,2.5517]
[1718471618274,5.6,145.01,145.0,7.6551]
[1718471618815,5.6,145.01,145.0,25.517]
[1718471618983,5.77,145.01,144.98,7.6559]
[1718471619173,5.77,145.01,144.98,25.52]
[1718471619174,5.6,144.99,144.98,25.52]
[1718471621310,5.6,145.0,144.99,7.6554]
[1718471622404,5.6,145.0,144.99,2.5517]
[1718471623285,2.7213,145.02,144.99,7.6555]
[1718471623477,5.6,145.0,144.99,7.6555]
[1718471623678,5.6,145.0,144.98,25.52]
[1718471623900,5.6,144.99,144.98,25.52]
[1718471624414,0.34,145.04,144.95,15.6971]
[1718471624593,0.34,145.04,145.0,17.8619]
[1718471624594,5.6,145.01,145.0,17.8619]
[1718471624784,5.6,145.02,145.01,15.3088]
[1718471625110,5.6,145.02,145.01,7.6543]
[1718471625312,0.34,145.03,145.01,2.5514]
[1718471625486,5.6,145.02,145.01,2.5514]
[1718471625890,5.6,145.02,145.0,25.5162]
[1718471626321,0.34,145.03,145.0,25.5162]
[1718471626618,5.6,145.02,145.0,2.5515]
[1718471626910,5.6,145.02,145.0,7.6549]
[1718471627090,5.6,145.02,145.01,22.9634]
[1718471627286,2.721,145.04,145.01,25.5149]
[1718471627491,5.77,145.04,145.02,2.5513]
[1718471628010,8.321,145.04,145.01,25.5148]
[1718471628313,8.321,145.04,145.01,7.6544]
[1718471628504,13.423,145.04,145.01,7.6544]
[1718471629190,7.823,145.04,145.01,2.5514]
[1718471629385,2.5507,145.06,145.03,2.5511]
[1718471629595,5.6,145.05,145.03,2.5511]
[1718471629792,5.6,145.04,145.02,7.6536]
[1718471629986,5.6,145.03,145.01,2.5515]
[1718471630209,5.6,145.03,145.0,25.5167]
[1718471630589,5.6,145.03,145.01,7.6544]
[1718471630886,5.6,145.03,145.01,7.6543]
[1718471631091,5.6,145.03,145.02,2.5513]
[1718471634113,5.6,145.04,145.02,2.5513]
[1718471635494,7.6522,145.06,145.03,2.5511]
[1718471635698,5.6,145.05,145.03,2.5511]
[1718471636004,15.3042,145.06,145.03,2.5511]
[1718471636190,5.6,145.05,145.03,2.5511]
[1718471637319,8.1508,145.05,145.02,25.5126]
[1718471637502,13.2524,145.05,145.02,7.6538]
[1718471637819,13.2524,145.05,145.02,7.6539]
[1718471638311,8.1508,145.05,145.02,15.3079]
[1718471638519,8.1508,145.05,145.02,25.5133]
[1718471639429,13.2525,145.05,145.02,7.6539]
[1718471639728,5.6,145.04,145.02,7.6539]
[1718471640324,2.5508,145.05,145.02,15.308]
[1718471640505,5.6,145.04,145.03,2.5511]
[1718471641721,25.5074,145.06,145.03,2.5511]
[1718471641925,5.6,145.04,145.03,2.5511]
[1718471643843,5.6,145.04,145.01,22.9629]
[1718471644048,8.151,145.04,145.01,25.5143]
[1718471644345,13.253,145.04,145.01,7.6543]
[1718471644724,5.6,145.03,145.01,7.6543]
[1718471645037,5.6,145.02,145.0,15.3101]
[1718471645202,2.5513,145.03,145.0,15.3101]
[1718471645403,5.6,145.02,145.0,22.9652]
[1718471645605,5.6,145.02,145.0,25.5168]
[1718471646101,5.6,145.02,145.01,2.5515]
[1718471646306,5.6,145.02,145.01,7.6545]
[1718471646507,5.6,145.02,145.01,15.3091]
[1718471646902,5.6,145.02,145.01,25.5152]
[1718471647099,5.6,145.03,145.02,2.5512]
[1718471647425,5.6,145.03,145.02,25.5134]
[1718471649129,2.5507,145.06,145.03,2.551]
[1718471649331,5.6,145.04,145.02,22.9615]
[1718471649526,5.6,145.04,145.03,2.5511]
[1718471649920,5.6,145.04,145.03,7.6534]
[1718471650249,5.6,145.04,145.02,22.9615]
[1718471650412,5.6,145.04,145.03,2.5511]
[1718471651726,5.6,145.04,145.02,2.5512]
[1718471651931,5.6,145.03,145.02,7.6539]
[1718471652520,5.6,145.03,145.01,25.5143]
[1718471653320,5.6,145.03,145.02,2.5513]
[1718471653820,5.6,145.03,145.02,15.3081]
[1718471654940,2.5509,145.05,145.02,15.3081]
[1718471655128,5.6,145.03,145.02,15.3081]
[1718471655325,5.6,145.04,145.03,2.5511]
[1718471655809,5.6,145.04,145.03,7.6534]
[1718471656633,32.69356437,145.07,145.04,2.5509]
[1718471656938,5.6,145.06,145.04,25.5092]
[1718471657236,5.6,145.06,145.04,25.5091]
[1718471657532,25.5036,145.08,145.05,2.5508]
[1718471657836,5.6,145.07,145.05,7.6524]
[1718471659018,5.6,145.07,145.05,2.5508]
[1718471659340,8.1505,145.07,145.04,25.5087]
[1718471660024,13.2515,145.07,145.04,7.6525]
[1718471660225,8.1505,145.07,145.04,15.3055]
[1718471660727,8.1505,145.07,145.04,25.5095]
[1718471661739,20.9029,145.07,145.04,7.6525]
[1718471662134,5.6,145.07,145.04,17.8568]
[1718471662333,8.1505,145.07,145.04,25.5094]
[1718471663247,13.2515,145.07,145.04,7.6526]
[1718471664642,20.9029,145.07,145.04,2.5508]
[1718471665037,20.9029,145.07,145.04,7.6528]
[1718471665526,20.9029,145.07,145.04,2.5508]
[1718471665732,2.5506,145.06,145.03,25.5107]
[1718471665919,2.5506,145.06,145.03,22.9597]
[1718471666247,5.6,145.06,145.02,2.5512]
[1718471666440,2.551,145.04,145.02,2.5513]
[1718471666756,5.6,145.04,145.02,7.654]
[1718471666920,5.6,145.04,145.02,2.5513]
[1718471667252,5.6,145.04,145.02,7.654]
[1718471667756,5.6,145.04,145.0,16.5183]
[1718471667918,5.6,145.04,145.02,12.7566]
[1718471668117,5.6,145.04,145.02,22.9619]
[1718471668346,5.6,145.04,145.02,25.5131]
[1718471668550,8.1508,145.05,145.02,25.5131]
[1718471668952,5.6,145.05,145.03,2.5511]
[1718471669419,5.6,145.05,145.04,2.551]
[1718471670527,5.6,145.05,145.04,7.653]
[1718471670840,5.6,145.05,145.03,25.5112]
[1718471672625,5.6,145.05,145.03,7.6531]
[1718471672835,5.6,145.05,145.03,15.3066]
[1718471673354,5.6,145.05,145.03,25.5113]
[1718471673656,5.6,145.05,145.04,2.551]
[1718471673819,8.1506,145.06,145.04,2.551]
[1718471674447,8.1506,145.06,145.03,22.9603]
[1718471674650,8.1506,145.06,145.04,2.5509]
[1718471674840,8.1506,145.06,145.03,25.5113]
[1718471675147,13.2519,145.06,145.03,7.6531]
[1718471675536,5.6,145.05,145.03,7.6531]
[1718471675738,5.6,145.05,145.03,15.3066]
[1718471675945,5.6,145.05,145.04,2.551]
[1718471676653,5.6,145.05,145.03,25.5113]
[1718471678937,5.6,145.06,145.04,7.653]
[1718471679137,5.6,145.06,145.04,25.5099]
[1718471679539,8.1507,145.06,145.03,15.3066]
[1718471679744,5.6,145.05,145.03,7.6532]
[1718471683155,5.6,145.05,145.03,15.3067]
[1718471686558,5.6,145.05,145.03,2.551]
[1718471688173,5.6,145.05,145.04,2.551]
[1718471689257,5.6,145.05,145.04,7.653]
[1718471689462,25.5056,145.07,145.04,7.653]
[1718471689663,5.6,145.05,145.04,25.51]
[1718471689870,5.6,145.06,145.04,25.51]
[1718471691759,5.6,145.06,145.04,7.653]
[1718471692064,5.6,145.06,145.04,15.306]
[1718471692365,8.1507,145.06,145.03,22.9595]
[1718471692563,8.1507,145.06,145.04,2.551]
[1718471694253,5.6,145.06,145.04,2.551]
[1718471695348,8.1506,145.06,145.03,25.5105]
[1718471696073,8.1506,145.06,145.04,2.551]
[1718471696570,8.1506,145.06,145.03,22.9595]
[1718471696571,5.6,145.05,145.03,25.5105]
[1718471697092,2.5506,145.06,145.04,2.5509]
[1718471697273,5.6,145.05,145.03,22.9595]
[1718471697447,5.6,145.05,145.04,2.551]
[1718471697974,5.6,145.05,145.04,15.306]
[1718471698155,5.6,145.06,145.04,7.653]
[1718471699471,8.1506,145.06,145.03,25.5104]
[1718471699839,5.6,145.05,145.03,25.5104]
[1718471700569,2.5506,145.07,145.05,2.5508]
[1718471700755,5.6,145.06,145.04,25.5098]
[1718471700957,5.6,145.06,145.05,2.5508]
[1718471701584,5.6,145.06,145.04,25.5098]
[1718471702373,5.6,145.06,145.04,17.8568]
[1718471702559,5.6,145.06,145.04,7.6528]
[1718471703573,13.2519,145.06,145.03,25.5105]
[1718471704261,2.5508,145.05,145.02,25.5131]
[1718471704598,2.5514,145.02,144.97,6.0243]
[1718471704777,5.6,145.01,144.99,7.6553]
[1718471704986,8.1515,145.01,144.98,25.5195]
[1718471705184,8.1515,145.01,144.98,7.6558]
[1718471705486,8.1515,145.01,144.98,15.312]
[1718471705664,8.1515,145.01,144.98,25.5202]
[1718471705854,5.6,145.01,144.99,22.9667]
[1718471706054,5.6,145.01,144.99,25.5184]
[1718471706261,5.6,145.01,145.0,2.5517]
[1718471707582,5.6,145.01,145.0,7.6551]
[1718471707782,5.6,145.01,145.0,2.5517]
[1718471708482,5.6,145.01,145.0,7.6551]
[1718471708986,5.6,145.01,145.0,15.3102]
[1718471709882,5.6,145.01,145.0,25.517]
[1718471718491,5.77,145.01,144.93,6.3745]
[1718471718689,5.6,144.97,144.96,7.6572]
[1718471718890,5.6,144.97,144.96,25.5241]
[1718471719076,5.6,144.97,144.96,10.2096]
[1718471719277,5.6,144.97,144.95,2.5524]
[1718471719487,5.6,144.96,144.94,25.5267]
[1718471719791,5.6,144.96,144.95,7.6578]
[1718471719964,5.6,144.96,144.95,2.5526]
[1718471720478,0.34,144.98,144.95,12.763]
[1718471720682,0.34,144.98,144.95,25.5256]
[1718471720879,5.6,144.96,144.95,7.6576]
[1718471721260,5.6,144.96,144.95,15.3154]
[1718471721664,5.6,144.96,144.95,25.5258]
[1718471723600,5.6,144.96,144.95,2.5524]
[1718471725196,5.6,144.96,144.95,7.6576]
[1718471725690,5.6,144.96,144.95,2.5524]
[1718471726306,18.2033,144.99,144.97,2.5522]
[1718471726307,0.34,144.99,144.97,2.5522]
[1718471726464,5.6,144.98,144.97,2.5522]
[1718471726810,5.6,144.98,144.97,7.6567]
[1718471726974,5.6,144.98,144.96,25.5229]
[1718471727290,5.6,144.97,144.96,25.5229]
[1718471727670,5.6,144.97,144.96,7.6567]
[1718471727865,5.6,144.97,144.95,25.5248]
[1718471728304,5.6,144.97,144.94,7.6581]
[1718471728305,5.6,144.96,144.94,7.6581]
[1718471728974,5.6,144.95,144.94,2.5526]
[1718471729178,5.6,144.95,144.94,7.6581]
[1718471729378,5.6,144.96,144.94,7.6581]
[1718471730298,5.6,144.96,144.94,25.5274]
[1718471730710,5.6,144.97,144.96,2.5523]
[1718471730997,5.6,144.97,144.96,7.6571]
[1718471731378,5.6,144.97,144.96,2.5523]
[1718471731583,5.6,144.97,144.95,22.9731]
[1718471731797,5.6,144.97,144.95,25.5255]
[1718471732303,5.6,144.97,144.95,15.3151]
[1718471732605,5.6,144.97,144.95,25.5251]
[1718471733117,5.6,144.97,144.95,7.6573]
[1718471734402,5.6,144.97,144.95,2.5524]
[1718471734808,5.6,144.96,144.95,2.5524]
[1718471735176,5.6,144.96,144.89,6.3745]
[1718471735177,8.1524,144.96,144.93,25.5282]
[1718471735593,5.6,144.96,144.94,2.5527]
[1718471736073,5.6,144.96,144.94,22.9745]
[1718471736274,5.6,144.96,144.95,2.5526]
[1718471736508,5.6,144.96,144.94,25.5271]
[1718471736812,5.6,144.96,144.94,2.5526]
[1718471736983,5.6,144.96,144.94,7.6581]
[1718471737291,5.6,144.96,144.94,2.5526]
[1718471738183,5.6,144.96,144.94,7.658]
[1718471738809,5.6,144.96,144.94,15.3163]
[1718471738993,5.6,144.95,144.94,2.5527]
[1718471739896,5.6,144.95,144.93,22.9754]
[1718471740200,5.6,144.95,144.94,2.5527]
[1718471740590,0.17,144.98,144.91,5.6]
[1718471740811,7.18277619,145.0,144.98,5.1038]
[1718471741012,22.4165,145.04,144.99,25.519]
[1718471741013,2.5512,145.03,144.99,25.519]
[1718471741189,2.5512,145.03,144.99,17.8633]
[1718471741389,5.6,145.01,145.0,2.5516]
[1718471741599,22.4165,145.04,144.95,5.6]
[1718471741793,7.18030508,145.05,145.02,7.654]
[1718471741999,5.6,145.04,145.02,25.5131]
[1718471742316,256.7,145.06,145.03,17.8581]
[1718471742503,5.6,145.04,145.03,7.6534]
[1718471742813,16.0747,145.08,144.99,16.0837]
[1718471743024,5.6,145.07,145.05,7.6523]
[1718471743186,5.6,145.07,145.06,2.5506]
[1718471743387,5.6,145.07,145.05,15.3046]
[1718471743587,5.6,145.07,145.04,25.5087]
[1718471743806,28.8262,145.08,145.04,25.5087]
[1718471744016,5.6,145.07,145.05,2.5508]
[1718471745103,5.6,145.07,145.04,25.5087]
[1718471745613,5.6,145.07,145.05,2.5508]
[1718471746015,5.6,145.07,145.04,25.5087]
[1718471746820,8.1504,145.07,145.04,25.5087]
[1718471747025,8.1504,145.07,145.04,7.6525]
[1718471747227,5.6,145.07,145.04,7.6525]
[1718471747398,8.1504,145.07,145.04,15.3055]
[1718471747596,8.1504,145.07,145.04,7.6525]
[1718471748418,2.5504,145.07,145.04,7.6525]
[1718471748622,8.1504,145.07,145.04,7.6525]
[1718471748989,2.5504,145.07,145.04,7.6525]
[1718471749192,5.6,145.07,145.04,7.6525]
[1718471749417,8.1505,145.07,145.04,7.6525]
[1718471750218,8.1505,145.07,145.04,2.5508]
[1718471750427,5.6,145.06,145.03,25.5106]
[1718471750623,2.5508,145.05,145.01,17.86]
[1718471750915,8.151,145.04,145.01,2.5515]
[1718471751154,8.151,145.04,145.0,22.9649]
[1718471751155,8.1512,145.03,145.0,2.5516]
[1718471751297,5.6,145.02,145.0,2.5516]
[1718471751490,5.6,145.02,145.01,2.5515]
[1718471751938,5.6,145.03,145.0,25.5167]
[1718471752108,8.1512,145.03,145.0,7.6549]
[1718471752316,5.6,145.02,145.0,2.5517]
[1718471752705,5.6,145.02,145.0,7.6551]
[1718471753315,5.6,145.02,145.0,2.5517]
[1718471753632,5.6,145.01,144.99,2.5518]
[1718471753809,5.6,145.0,144.99,2.5518]
[1718471754001,5.6,145.0,144.99,7.6556]
[1718471754515,5.6,145.0,144.99,15.3113]
[1718471754926,5.6,145.0,144.99,7.6556]
[1718471755107,5.6,145.0,144.95,16.6047]
[1718471755628,5.6,145.0,144.98,2.5519]
[1718471755799,5.6,145.0,144.97,15.3131]
[1718471756000,5.6,145.0,144.98,2.552]
[1718471756730,5.6,145.0,144.97,25.5219]
[1718471757149,5.6,145.0,144.98,2.552]
[1718471757500,5.6,144.99,144.98,7.6561]
[1718471757821,2.5516,145.01,144.98,7.6561]
[1718471757822,5.6,145.0,144.98,7.6561]
[1718471758301,5.6,145.0,144.99,2.5519]
[1718471758502,2.5513,145.02,144.99,15.3112]
[1718471758708,5.6,145.01,145.0,2.5517]
[1718471759112,5.6,145.01,145.0,7.6551]
[1718471759406,5.6,145.01,145.0,2.5517]
[1718471759712,5.6,145.01,144.99,25.5184]
[1718471759906,8.1516,145.01,144.98,7.6559]
[1718471760139,5.6,145.01,144.98,15.312]
[1718471760322,32.2981,145.03,145.0,2.5517]
[1718471760642,5.6,145.01,145.0,2.5517]
[1718471761033,5.6,145.02,145.0,22.9652]
[1718471761237,5.6,145.02,145.0,2.5516]
[1718471761649,8.1513,145.02,144.99,25.5178]
[1718471762154,8.1513,145.02,144.99,7.6552]
[1718471762461,13.254,145.02,144.99,2.5517]
[1718471762740,5.6,145.01,144.98,25.5194]
[1718471763112,5.6,145.01,144.99,2.5518]
[1718471764535,5.6,145.01,144.98,25.5194]
[1718471764733,2.5515,145.01,144.98,25.5194]
[1718471764936,5.6,145.0,144.98,25.5194]
[1718471765109,5.6,145.0,144.98,7.6559]
[1718471765312,8.1519,144.99,144.96,7.657]
[1718471765510,5.6,144.98,144.96,15.3142]
[1718471765814,5.6,144.98,144.96,22.9715]
[1718471766025,5.6,144.98,144.97,2.5522]
[1718471766739,5.6,144.98,144.97,15.3134]
[1718471767041,5.6,144.98,144.97,7.6567]
[1718471768536,5.6,144.98,144.97,25.5224]
[1718471770257,5.6,144.98,144.93,5.6]
[1718471770258,5.6,144.99,144.98,25.52]
[1718471770423,47.44566728,145.04,145.01,2.5515]
[1718471770746,47.44566728,145.04,144.92,37.3147]
[1718471770747,5.6,145.02,145.0,25.5161]
[1718471771145,5.6,145.02,145.0,7.6547]
[1718471771653,5.6,145.02,145.0,2.5516]
[1718471771856,8.1513,145.02,144.99,25.5176]
[1718471772030,13.2541,145.02,144.99,2.5517]
[1718471772423,20.9082,145.02,144.99,2.5517]
[1718471772730,5.6,145.0,144.97,22.9693]
[1718471772927,5.6,144.98,144.97,25.5214]
[1718471773833,5.6,144.98,144.97,7.6563]
[1718471774037,5.6,144.98,144.97,15.313]
[1718471774354,5.6,144.98,144.97,25.522]
[1718471775069,2.5512,145.03,145.0,7.6549]
[1718471775243,7.6536,145.03,145.0,7.6549]
[1718471775442,5.6,145.01,145.0,2.5516]
[1718471776060,5.6,145.01,144.99,25.5175]
[1718471776245,5.6,145.0,144.99,25.5175]
[1718471776755,5.6,145.0,144.99,7.6553]
[1718471776971,5.6,145.0,144.99,2.5517]
[1718471777136,5.6,145.0,144.98,25.5195]
[1718471777535,5.6,145.0,144.98,17.8637]
[1718471777753,5.6,145.0,144.98,2.5519]
[1718471778046,5.6,144.99,144.98,2.5519]
[1718471778248,7.6547,145.01,144.98,7.656]
[1718471778455,5.6,144.99,144.98,7.656]
[1718471779129,5.6,144.99,144.98,2.5519]
[1718471779327,5.6,144.99,144.97,22.9695]
[1718471779544,5.6,144.99,144.98,2.552]
[1718471780760,5.6,144.99,144.98,7.6561]
[1718471781371,30.14766728,145.04,144.92,37.3147]
[1718471781679,5.6,145.01,145.0,2.5516]
[1718471782033,5.6,145.01,145.0,2.5517]
[1718471782758,5.6,145.01,144.99,25.518]
[1718471783250,5.6,145.01,145.0,2.5517]
[1718471784266,5.6,145.01,145.0,15.3102]
[1718471784430,5.6,145.01,145.0,7.6551]
[1718471784864,7.6536,145.03,145.0,7.6551]
[1718471785238,2.5512,145.03,145.0,25.5168]
[1718471785568,22.9601,145.04,145.01,2.5514]
[1718471785738,5.6,145.02,145.01,2.5514]
[1718471786067,2.5511,145.03,145.01,2.5515]
[1718471786364,5.6,145.02,145.0,25.5168]
[1718471786567,7.653,145.04,145.01,7.6545]
[1718471786742,5.6,145.02,145.01,7.6545]
[1718471787452,5.6,145.02,145.01,2.5515]
[1718471787854,5.6,145.02,145.01,7.6545]
[1718471788964,5.6,145.02,145.0,2.5516]
[1718471789150,5.6,145.01,145.0,2.5516]
[1718471789336,5.6,145.01,145.0,7.655]
[1718471789538,5.6,145.01,145.0,15.3101]
[1718471789775,5.6,145.02,145.01,2.5515]
[1718471789936,5.6,145.02,145.01,15.3091]
[1718471790136,5.6,145.02,145.01,7.6545]
[1718471790375,5.6,145.02,145.01,15.3091]
[1718471790681,22.9583,145.05,145.02,2.5512]
[1718471790682,5.6,145.03,145.02,2.5512]
[1718471790881,5.6,145.03,145.02,7.6539]
[1718471791236,5.6,145.03,145.02,2.5512]
[1718471791438,5.6,145.03,145.02,7.6539]
[1718471791638,5.6,145.03,145.02,2.5512]
[1718471791876,5.6,145.03,145.02,7.6539]
[1718471792179,5.6,145.03,145.02,2.5512]
[1718471792863,5.6,145.03,145.02,2.5513]
[1718471793045,5.6,145.03,145.02,7.654]
[1718471794186,5.6,145.03,145.01,25.5144]
[1718471795048,2.551,145.04,145.02,2.5513]